fUSD/lending_fUSD_20240421
["ID","MTS","AMOUNT","RATE_DAILY","PERIOD"]
[323153170,1713728734897,-150.0,0.00012022,2]
[323153171,1713728735517,-150.0,0.00012022,2]
[323153172,1713728736170,-150.0,0.00012022,2]
[323153174,1713728753478,2999.50193074,0.00012021,2]
[323153176,1713728759298,565.28112951,0.00012021,2]
[323153177,1713728759582,1351.28058866,0.00012021,2]
[323153178,1713728765522,5459.33724824,0.00012021,2]
[323153179,1713728767388,781.17257393,0.00012021,2]
[323153180,1713728769984,1783.86045865,0.00012021,2]
[323153188,1713728828624,1982.92990131,0.00012021,2]
[323153189,1713728830142,1731.69,0.00011831,2]
[323153197,1713728975309,167.6,0.00011745,2]
[323153198,1713729019288,207.98,0.0001611,10]
[323153199,1713729019884,4321.85408576,0.0001202,2]
[323153200,1713729030138,4582.35597345,0.0001202,2]
[323153209,1713729031948,-155.0,0.00012021,2]
[323153210,1713729031958,-967.4225917,0.00012021,2]
[323153211,1713729031968,-126.8994723,0.00012026,2]
[323153212,1713729032139,-437.55511488,0.00012026,2]
[323153213,1713729032148,-262.52581604,0.00012026,2]
[323153214,1713729032189,-347.96815075,0.00012026,2]
[323153215,1713729032202,-1173.36649186,0.00012026,2]
[323153216,1713729032210,-150.0,0.00012027,2]
[323153217,1713729032220,-150.0,0.00012041,2]
[323153218,1713729032230,-226.63350814,0.00012042,2]
[323153225,1713729037929,-1057.57328384,0.00012042,2]
[323153226,1713729037941,-2534.27766681,0.00012042,2]
[323153227,1713729037955,-412.98097719,0.00012042,2]
[323153228,1713729037967,-1403.45866887,0.00012042,2]
[323153229,1713729037978,-5659.40482079,0.00012042,2]
[323153230,1713729037990,-3751.56582909,0.00012042,2]
[323153231,1713729038001,-47144.46521374,0.00012042,2]
[323153232,1713729038010,-1000.0,0.00012043,2]
[323153233,1713729038019,-27697.97292379,0.00012052,3]
[323153234,1713729038029,-499.99,0.00012148,2]
[323153235,1713729038038,-1241.48312189,0.00012156,2]
[323153236,1713729038047,-3026.66149794,0.00012157,2]
[323153237,1713729038056,-197.55604545,0.00012157,2]
[323153238,1713729038066,-4319.65024388,0.00012166,2]
[323153239,1713729038075,-546110.08499959,0.00012167,2]
[323153240,1713729038085,-4756.90953119,0.00012168,2]
[323153241,1713729038094,-1000.0,0.00012295,2]
[323153242,1713729038104,-824.43,0.00012431,2]
[323153243,1713729038113,-1076.09903788,0.000126,2]
[323153244,1713729038122,-397.30984825,0.00012694,2]
[323153245,1713729038132,-192.70495298,0.00012694,2]
[323153246,1713729038142,-1350.39377791,0.00012694,2]
[323153247,1713729038151,-241.05831486,0.00012694,2]
[323153248,1713729038161,-779.90682427,0.00012694,2]
[323153249,1713729038172,-709.66689776,0.00012694,2]
[323153250,1713729038183,-4726.9461132,0.00012694,2]
[323153251,1713729038193,-1993.92102893,0.00012694,2]
[323153252,1713729038203,-155.0,0.00012694,2]
[323153253,1713729038212,-1060.25258185,0.00012694,2]
[323153254,1713729038221,-155.09761996,0.00012694,2]
[323153255,1713729038231,-363.06901353,0.00012694,2]
[323153256,1713729038241,-157.17390177,0.00012694,2]
[323153257,1713729038251,-376.66109702,0.00012694,2]
[323153258,1713729038260,-236.6335643,0.00012694,2]
[323153259,1713729038271,-3381.28227262,0.00012694,2]
[323153260,1713729038282,-207.73115814,0.00012694,2]
[323153261,1713729038293,-155.07939103,0.00012694,2]
[323153262,1713729038303,-202.23587417,0.00012694,2]
[323153264,1713729038313,-155.11113649,0.00012694,2]
[323153266,1713729038322,-365.80477657,0.00012694,2]
[323153267,1713729038333,-194.35396704,0.00012695,2]
[323153268,1713729038342,-2998.19665026,0.00012695,2]
[323153269,1713729038351,-100000.0,0.00012697,2]
[323153270,1713729038361,-245000.0,0.00012697,2]
[323153271,1713729038370,-418.99,0.000127,2]
[323153272,1713729038379,-418.99,0.000127,2]
[323153273,1713729038388,-563.6279,0.00012897,2]
[323153274,1713729038397,-3599.7683,0.00012897,2]
[323153275,1713729038407,-10000.0,0.000129,2]
[323153276,1713729038416,-487.69669714,0.000129,2]
[323153277,1713729038426,-487.69669714,0.000129,2]
[323153278,1713729038436,-487.69669714,0.000129,2]
[323153279,1713729038445,-487.69669714,0.000129,2]
[323153280,1713729038457,-331.87403042,0.000129,2]
[323153281,1713729038467,-1076.09903778,0.00012965,2]
[323153282,1713729038477,-487.69669714,0.00012973,2]
[323153283,1713729038486,-6415.7454832,0.00012988,2]
[323153284,1713729038495,-2883.6812812,0.00012988,2]
[323153285,1713729038505,-4034.84274817,0.00012997,2]
[323153286,1713729038514,-343.06778074,0.00012997,2]
[323153287,1713729038524,-786.55541913,0.00012997,2]
[323153288,1713729038534,-2352.85048105,0.00012997,2]
[323153289,1713729038544,-267.13908293,0.00012997,2]
[323153290,1713729038553,-7113742.12396428,0.00013,2]
[323153291,1713729038566,-1266577.43715545,0.00013,2]
[323153292,1713729038597,-717.75000002,0.00013,2]
[323153293,1713729038609,-319.395,0.00013,2]
[323153294,1713729038620,-10510.64443999,0.00013,2]
[323153295,1713729038631,-515.63211921,0.00013,2]
[323153296,1713729038664,-322.83473211,0.00013,2]
[323153297,1713729038679,-2192.90566908,0.00013,2]
[323153298,1713729038708,-1986.0642,0.00013,2]
[323153299,1713729038721,-390.21121279,0.00013,2]
[323153300,1713729038732,-3338.92157605,0.00013,2]
[323153301,1713729038743,-400.0,0.00013,2]
[323153302,1713729039577,-697.4604058,0.00013,2]
[323153303,1713729039588,-597.24,0.00013,2]
[323153304,1713729039602,-70217.49847004,0.00013,2]
[323153305,1713729039623,-304.32007486,0.00013,2]
[323153306,1713729039635,-3359.10000001,0.00013,2]
[323153307,1713729039646,-643.69,0.00013,2]
[323153310,1713729040347,-1407.0290311,0.00013,2]
[323153311,1713729040370,-1816.48427576,0.00013,2]
[323153312,1713729040383,-39664.18683035,0.00013,2]
[323153313,1713729040394,-648.928155,0.00013,2]
[323153314,1713729040406,-7852.07191948,0.00013,2]
[323153315,1713729040417,-763.87006642,0.00013,2]
[323153316,1713729040508,-290.77689149,0.00013,2]
[323153317,1713729040520,-354.72788086,0.00013,2]
[323153318,1713729040532,-348.49967892,0.00013,2]
[323153319,1713729040544,-123226.91433534,0.00013,2]
[323153320,1713729040613,-260.59,0.00013,2]
[323153321,1713729040626,-380.26693468,0.00013,2]
[323153322,1713729040637,-3151.59999991,0.00013,2]
[323153323,1713729040648,-509.999985,0.00013,2]
[323153324,1713729040659,-4211.70784259,0.00013,2]
[323153325,1713729040673,-2611.22327998,0.00013,2]
[323153326,1713729041864,-3170.32060532,0.00013,2]
[323153327,1713729041876,-3401.81458229,0.00013,2]
[323153328,1713729041921,-290.82,0.00013,2]
[323153329,1713729041998,-1900.42736233,0.00013,2]
[323153330,1713729042010,-1819.99999776,0.00013,2]
[323153331,1713729042022,-555.29,0.00013,2]
[323153332,1713729042033,-4744.3403348,0.00013,2]
[323153333,1713729042043,-250.5,0.00013,2]
[323153360,1713729042949,-336.95839996,0.00013,2]
[323153367,1713729043003,-1250.0,0.00013,2]
[323153369,1713729043015,-400.0,0.00013,2]
[323153371,1713729043030,-337.65,0.00013,2]
[323153372,1713729043042,-3314.29816436,0.00013,2]
[323153373,1713729043190,-1492.0001,0.00013,2]
[323153374,1713729043203,-321.41549407,0.00013,2]
[323153375,1713729043295,-46405.61641877,0.00013,2]
[323153376,1713729043306,-2221.03993,0.00013,2]
[323153377,1713729043317,-865.00999,0.00013,2]
[323153378,1713729043346,-1468.79524653,0.00013,2]
[323153379,1713729043357,-1390.35857602,0.00013,2]
[323153380,1713729043368,-259.81768672,0.00013,2]
[323153381,1713729043379,-935.21484251,0.00013,2]
[323153382,1713729043390,-1401.6000012,0.00013,2]
[323153383,1713729043401,-299544.52238227,0.00013,2]
[323153384,1713729043426,-7855.50752835,0.00013,2]
[323153385,1713729043437,-386.36150005,0.00013,2]
[323153386,1713729043448,-448.214748,0.00013,2]
[323153387,1713729043467,-560.82078999,0.00013,2]
[323153388,1713729043485,-57078.08479016,0.00013,2]
[323153389,1713729043540,-6700.5,0.00013,2]
[323153393,1713729045930,-967.4225917,0.00012999,2]
[323153394,1713729045941,-46.50301631,0.00013,2]
[323153395,1713729045986,-37181.62119711,0.00013,2]
[323153396,1713729045997,-552.94906208,0.00013,2]
[323153399,1713729046240,-4731.95083641,0.00013,2]
[323153400,1713729046257,-527.62,0.00013,2]
[323153401,1713729046601,-276073.36536653,0.00013,2]
[323153402,1713729046613,-1327.22324665,0.00013,2]
[323153403,1713729046631,-605.50432414,0.00013,2]
[323153404,1713729046648,-297.2,0.00013,2]
[323153405,1713729046659,-3352.69443134,0.00013,2]
[323153406,1713729046674,-994.19092379,0.00013,2]
[323153407,1713729046685,-100202.674041,0.00013,2]
[323153408,1713729046697,-107613.1299473,0.00013,2]
[323153409,1713729046709,-6101.00000004,0.00013,2]
[323153410,1713729046722,-16765.49148638,0.00013,2]
[323153411,1713729046733,-1685.37611214,0.00013,2]
[323153412,1713729046745,-310.00217,0.00013,2]
[323153413,1713729046758,-291.2772942,0.00013,2]
[323153414,1713729046770,-5245.19689501,0.00013,2]
[323153417,1713729150545,907.82,0.00010006,2]
[323153418,1713729152549,750.63,0.000265,120]
[323153419,1713729204431,1000.0,0.00027,120]
[323153420,1713729219889,1000.0,0.000273,120]
[323153421,1713729230615,1000.0,0.00027,120]
[323153433,1713729269263,250.0,0.00011653,2]
[323153434,1713729334792,3079.59,0.00011419,2]
[323153435,1713729336982,165.26,0.00011419,2]
[323153440,1713729377068,1431.62,0.000273,120]
[323153442,1713729421353,194.03700996,0.00011948,2]
[323153443,1713729428305,2540.35536187,0.00012,2]
[323153444,1713729434511,860.88,0.00011379,2]
[323153445,1713729452746,165.82,0.00011253,2]
[323153446,1713729453163,165.82,0.00011309,2]
[323153447,1713729461969,177.49408055,0.00011957,2]
[323153448,1713729482312,181.74,0.00011226,2]
[323153449,1713729513748,15841.8473289,0.00012999,5]
[323153450,1713729518250,192.7732,0.00011964,2]
[323153451,1713729524374,153.92612228,0.00011933,2]
[323153452,1713729548708,1291.3552,0.0001196,2]
[323153453,1713729551642,5697.2045,0.00011957,2]
[323153454,1713729556986,155.0,0.0001202,2]
[323153455,1713729558152,376.7617514,0.0001202,2]
[323153456,1713729562534,1994.39190651,0.0001202,2]
[323153457,1713729563474,62190.35996847,0.0001202,2]
[323153458,1713729564364,2999.50193074,0.0001202,2]
[323153459,1713729564696,155.0,0.0001202,2]
[323153460,1713729567690,155.0,0.0001202,2]
[323153461,1713729567873,236.69333883,0.0001202,2]
[323153462,1713729568113,967.4225917,0.0001202,2]
[323153463,1713729568142,192.70495298,0.0001202,2]
[323153464,1713729570637,1351.28058866,0.0001202,2]
[323153465,1713729570881,194.35396704,0.0001202,2]
[323153466,1713729572120,155.0,0.00012019,2]
[323153467,1713729573154,207.79442193,0.00012019,2]
[323153468,1713729573813,19436.1677666,0.0001202,2]
[323153469,1713729575266,210.55984644,0.00012019,2]
[323153470,1713729576882,207.72132305,0.0001202,2]
[323153471,1713729580164,565.8337,0.00011932,2]
[323153472,1713729581161,3775.88141152,0.0001202,2]
[323153473,1713729581484,62190.35996847,0.00012013,2]
[323153474,1713729584458,155.0,0.0001202,2]
[323153476,1713729589512,363.15940458,0.0001202,2]
[323153477,1713729590563,378.94447879,0.0001202,2]
[323153478,1713729590697,155.0,0.0001202,2]
[323153479,1713729591158,10564.83398166,0.0001202,2]
[323153480,1713729592316,155.0,0.0001202,2]
[323153481,1713729593097,343.26553462,0.0001202,2]
[323153482,1713729594568,2359.48463868,0.0001202,2]
[323153483,1713729595016,167.32653408,0.0001202,2]
[323153484,1713729595458,155.0,0.0001202,2]
[323153485,1713729597056,23347.24680025,0.0001202,2]
[323153486,1713729597984,487.22450388,0.0001202,2]
[323153487,1713729598084,1776.2800756,0.0001202,2]
[323153488,1713729598896,155.0,0.0001202,2]
[323153489,1713729599375,313.70598498,0.0001202,2]
[323153490,1713729599520,62190.35996847,0.00012013,2]
[323153491,1713729599966,206.72764411,0.0001202,2]
[323153492,1713729600313,523.86545643,0.0001202,2]
[323153493,1713729601810,526.77797146,0.0001202,2]
[323153494,1713729602477,150.0,0.0001202,2]
[323153495,1713729603934,4582.35597345,0.0001202,2]
[323153496,1713729604470,255.3668917,0.0001202,2]
[323153497,1713729605078,267.38740912,0.0001202,2]
[323153498,1713729607580,157.21544021,0.0001202,2]
[323153499,1713729607633,155.0,0.0001202,2]
[323153500,1713729607859,4409.42137827,0.0001202,2]
[323153501,1713729607894,5545.18226245,0.0001202,2]
[323153502,1713729608751,202.28660017,0.0001202,2]
[323153503,1713729608781,161.47811392,0.0001202,2]
[323153504,1713729612297,709.89892431,0.0001202,2]
[323153505,1713729614199,35248.80407098,0.0001202,2]
[323153506,1713729614833,155.0,0.0001202,2]
[323153507,1713729614883,565.28112951,0.0001202,2]
[323153508,1713729615770,155.0,0.0001202,2]
[323153509,1713729618439,62190.35996847,0.00012013,2]
[323153510,1713729620075,4634.59984894,0.00012014,2]
[323153511,1713729621884,1241.80746662,0.00012012,2]
[323153512,1713729623900,155.0,0.00012012,2]
[323153513,1713729624330,155.0,0.00012012,2]
[323153514,1713729624542,3382.14833468,0.00012012,2]
[323153515,1713729629367,490.38,0.00011367,2]
[323153516,1713729630602,860.36925914,0.00012017,2]
[323153517,1713729631035,1994.39190651,0.0001202,2]
[323153518,1713729631183,2154.2782,0.00011932,2]
[323153519,1713729633470,36987.98169183,0.00012013,2]
[323153520,1713729636174,1018.88,9.472e-05,2]
[323153521,1713729636338,1018.88,0.00011736,2]
[323153522,1713729637844,500.0,0.0001139,2]
[323153523,1713729638493,372.19,0.0001139,2]
[323153524,1713729653597,2000.0,0.00011366,3]
[323153525,1713729661131,784611.3111,0.00011927,2]
[323153526,1713729664661,194.98,0.0001611,10]
[323153527,1713729667433,363.15940458,0.0001202,2]
[323153528,1713729668803,155.0,0.0001202,2]
[323153529,1713729669597,343.26553462,0.0001202,2]
[323153530,1713729669666,10564.83398166,0.0001202,2]
[323153531,1713729669702,563.6279,0.00011927,2]
[323153532,1713729674356,526.77797146,0.0001202,2]
[323153533,1713729676367,19436.1677666,0.0001202,2]
[323153534,1713729680172,684.0277903,0.0001202,2]
[323153535,1713729681072,155.0,0.0001202,2]
[323153536,1713729684030,781.17257393,0.0001202,2]
[323153537,1713729684143,200.25592652,0.0001202,2]
[323153538,1713729684636,35248.80407098,0.0001202,2]
[323153539,1713729685828,267.38740912,0.0001202,2]
[323153540,1713729686465,4321.85408576,0.0001202,2]
[323153541,1713729686932,155.0,0.0001202,2]
[323153542,1713729688392,1060.52885847,0.0001202,2]
[323153543,1713729689368,709.89892431,0.0001202,2]
[323153544,1713729691269,202.28660017,0.0001202,2]
[323153545,1713729697111,3382.14833468,0.0001202,2]
[323153546,1713729697184,967.4225917,0.0001202,2]
[323153547,1713729702747,155.0,0.0001202,2]
[323153548,1713729710346,70944.1694,0.00011927,2]
[323153549,1713729744835,9099.8,0.0001139,2]
[323153550,1713729748405,171.25018801,0.00011927,2]
[323153551,1713729751802,418.11,0.0001139,2]
[323153552,1713729754569,1060.52885847,0.0001202,2]
[323153553,1713729755125,845.9,0.00011475,2]
[323153554,1713729755352,845.9,0.00011507,2]
[323153555,1713729755826,845.9,0.00011538,2]
[323153556,1713729756007,845.9,0.00011569,2]
[323153557,1713729756251,845.9,0.00011601,2]
[323153558,1713729756473,845.9,0.00011632,2]
[323153559,1713729756653,10463.9914,0.00011927,2]
[323153560,1713729756700,845.9,0.00011664,2]
[323153561,1713729757393,845.9,0.00011695,2]
[323153562,1713729757518,845.9,0.00011727,2]
[323153563,1713729757839,845.9,0.00011758,2]
[323153564,1713729757954,845.9,0.0001179,2]
[323153565,1713729758076,845.9,0.00011821,2]
[323153566,1713729758302,845.9,0.00011853,2]
[323153567,1713729758557,845.9,0.00011884,2]
[323153568,1713729758587,781.17257393,0.0001202,2]
[323153569,1713729758748,845.9,0.00011916,2]
[323153570,1713729759231,845.9,0.00011947,2]
[323153571,1713729759392,845.9,0.00011979,2]
[323153572,1713729759495,845.9,0.0001201,2]
[323153573,1713729764228,772.5805,0.00011927,2]
[323153574,1713729768947,26328.2317,0.00011927,2]
[323153575,1713729774756,207.79442193,0.0001202,2]
[323153576,1713729777217,1589.3459,0.00011927,2]
[323153577,1713729781604,236.69333883,0.0001202,2]
[323153578,1713729782187,1351.28058866,0.0001202,2]
[323153579,1713729792246,175.58,0.00011899,2]
[323153580,1713729796039,170.37774008,0.00011927,2]
[323153581,1713729826558,3294.66,0.0001137,2]
[323153582,1713729831084,4454.9542,0.00011927,2]
[323153583,1713729837142,4414.7549,0.00011927,2]
[323153584,1713729841042,781.17257393,0.0001202,2]
[323153585,1713729875100,13162.38,0.0001137,2]
[323153587,1713729878589,250.0,0.0001137,2]
[323153588,1713729880360,1955.0239,0.00011927,2]
[323153589,1713729900566,150.0,0.00011382,2]
[323153590,1713729904295,1983.42692654,0.0001202,2]
[323153591,1713729908195,1983.42692654,0.0001202,2]
[323153592,1713729909285,1983.42692654,0.0001202,2]
[323153593,1713729913884,1983.42692654,0.0001202,2]
[323153594,1713729929785,81123.4394,0.00011927,2]
[323153595,1713729935382,3938.2225,0.00011927,2]
[323153596,1713729941724,563.665088,0.0001202,2]
[323153597,1713729996743,153.75,0.00011395,2]
[323153598,1713730004953,160.72349285,0.00011924,2]
[323153599,1713730012114,277.77,0.00011395,2]
[323153600,1713730017236,424.95157185,0.00011552,2]
[323153601,1713730030280,448.20850658,0.0001202,2]
[323153602,1713730041834,614.77,0.00011403,2]
[323153603,1713730065306,19420.94496752,0.0001202,2]
[323153604,1713730129912,2000.0,0.00011369,3]
[323153605,1713730138372,182.79,0.0001611,10]
[323153606,1713730173128,482.7589,0.00011925,2]
[323153611,1713730199530,6484.50012854,0.00011927,2]
[323153612,1713730204548,6484.50012851,0.00012015,2]
[323153613,1713730214448,573.57950609,0.00012017,2]
[323153616,1713730232138,-348.06104,0.00012023,2]
[323153620,1713730232193,-134.37535974,0.00012023,2]
[323153621,1713730232203,-150.0,0.00012024,2]
[323153622,1713730232213,-53.98464026,0.00012025,2]
[323153623,1713730232268,-140.91846902,0.00012025,2]
[323153624,1713730232278,-155.80892173,0.00012025,2]
[323153625,1713730232287,-1596.08334242,0.00012025,2]
[323153626,1713730232296,-155.12450973,0.00012025,2]
[323153627,1713730232305,-158.49372764,0.00012025,2]
[323153628,1713730232314,-192.32263462,0.00012025,2]
[323153629,1713730232324,-247.6312833,0.00012025,2]
[323153630,1713730232333,-194.08024151,0.00012025,2]
[323153631,1713730232343,-186.89421899,0.00012025,2]
[323153632,1713730232352,-2755.65583329,0.00012025,2]
[323153633,1713730232361,-211.68428899,0.00012025,2]
[323153634,1713730232371,-164.61352808,0.00012025,2]
[323153635,1713730232381,-219.05520184,0.00012025,2]
[323153636,1713730232389,-58.06379884,0.00012025,2]
[323153637,1713730232408,-711.0273802,0.00012025,2]
[323153638,1713730232417,-306.95158875,0.00012025,2]
[323153639,1713730232428,-155.0,0.00012025,2]
[323153640,1713730232438,-1760.85491199,0.00012025,2]
[323153641,1713730232447,-10567.16611406,0.00012025,2]
[323153642,1713730232481,-646.06644,0.00012025,2]
[323153643,1713730232507,-1821.38803381,0.00012025,2]
[323153644,1713730232519,-3705.17334867,0.00012025,2]
[323153645,1713730232530,-208.58192749,0.00012025,2]
[323153646,1713730232539,-197.58004724,0.00012025,2]
[323153647,1713730232549,-242.38602639,0.00012025,2]
[323153648,1713730232558,-490.56341243,0.00012025,2]
[323153649,1713730232567,-300.95792734,0.00012025,2]
[323153650,1713730232577,-309.95428075,0.00012025,2]
[323153651,1713730232586,-3018.84273905,0.00012025,2]
[323153652,1713730232597,-559.09735674,0.00012025,2]
[323153653,1713730232606,-157.13236333,0.00012025,2]
[323153654,1713730232615,-161.31340791,0.00012025,2]
[323153655,1713730232625,-321.44214155,0.00012025,2]
[323153656,1713730232634,-157.37702182,0.00012025,2]
[323153657,1713730232643,-205.7728251,0.00012025,2]
[323153658,1713730232662,-168.80224381,0.00012025,2]
[323153659,1713730232674,-217.33147877,0.00012025,2]
[323153660,1713730232684,-211.35577984,0.00012025,2]
[323153661,1713730232694,-346.41830008,0.00012025,2]
[323153662,1713730232704,-244.9975527,0.00012025,2]
[323153663,1713730232714,-525.99975738,0.00012025,2]
[323153664,1713730232724,-515.51901782,0.00012025,2]
[323153665,1713730232734,-273.04053863,0.00012025,2]
[323153666,1713730232744,-4435.97775851,0.00012025,2]
[323153667,1713730232755,-573.99602069,0.00012025,2]
[323153668,1713730232765,-325.83684968,0.00012025,2]
[323153669,1713730232775,-201.36658946,0.00012025,2]
[323153670,1713730232785,-3668.36402582,0.00012025,2]
[323153671,1713730232795,-259.32312542,0.00012025,2]
[323153672,1713730232805,-231.6155803,0.00012025,2]
[323153673,1713730232815,-966.2617901,0.00012025,2]
[323153674,1713730232825,-2919.52900857,0.00012025,2]
[323153675,1713730232835,-277.09289079,0.00012025,2]
[323153676,1713730232848,-926.65580301,0.00012025,2]
[323153677,1713730232857,-208.428785,0.00012025,2]
[323153678,1713730232867,-1297.19964342,0.00012025,2]
[323153679,1713730232877,-313.40476678,0.00012025,2]
[323153680,1713730232886,-556.05097981,0.00012025,2]
[323153681,1713730232896,-873.88003401,0.00012025,2]
[323153682,1713730232906,-249.10410252,0.00012025,2]
[323153683,1713730232915,-4733.2143832,0.00012026,2]
[323153684,1713730232926,-341893.04392817,0.00012027,2]
[323153685,1713730232938,-522.13920169,0.00012027,2]
[323153686,1713730232949,-918.67206161,0.00012027,2]
[323153719,1713730238202,-974.08067741,0.00012027,2]
[323153722,1713730238220,-1419.41949608,0.00012027,2]
[323153723,1713730238248,-339869.77622046,0.00012027,2]
[323153724,1713730238258,-546110.08499959,0.00012027,2]
[323153725,1713730238267,-75473.451,0.00012027,2]
[323153726,1713730238277,-442.6045,0.00012027,2]
[323153727,1713730238286,-4728.17005222,0.00012028,2]
[323153728,1713730238295,-47666.19220938,0.00012033,2]
[323153729,1713730238305,-2856.25610264,0.00012041,2]
[323153730,1713730238315,-26065.12,0.00012041,2]
[323153731,1713730238324,-150.99,0.00012041,2]
[323153732,1713730238334,-1098.77,0.00012041,2]
[323153733,1713730238344,-1314.64,0.00012041,2]
[323153734,1713730238354,-150.99,0.00012042,2]
[323153735,1713730238364,-150.99,0.00012042,2]
[323153736,1713730238374,-299.99,0.00012042,2]
[323153737,1713730238384,-499.99,0.00012042,2]
[323153738,1713730238393,-365.84,0.00012042,2]
[323153739,1713730238404,-150.99,0.00012042,2]
[323153740,1713730238414,-3028.1,0.00012042,2]
[323153741,1713730238424,-676.23,0.00012042,2]
[323153742,1713730238434,-845.9,0.00012042,2]
[323153743,1713730238443,-240.51,0.00012047,2]
[323153744,1713730238452,-214.00741216,0.00012058,2]
[323153745,1713730238462,-286.32224343,0.00012058,2]
[323153746,1713730238474,-155.0,0.00012058,2]
[323153747,1713730238484,-397.30984825,0.00012058,2]
[323153748,1713730238493,-155.0,0.00012058,2]
[323153749,1713730238504,-478.70142967,0.00012058,2]
[323153750,1713730238513,-404.63791958,0.00012058,2]
[323153751,1713730238524,-219.89815157,0.00012059,2]
[323153752,1713730238535,-246.18771344,0.00012059,2]
[323153753,1713730238545,-155.0,0.00012062,2]
[323153754,1713730238555,-155.0,0.00012062,2]
[323153755,1713730238565,-155.0,0.00012062,2]
[323153756,1713730238574,-193.04588733,0.00012062,2]
[323153757,1713730238584,-2354.9788646,0.00012063,2]
[323153758,1713730238593,-164.47454881,0.00012064,2]
[323153759,1713730238603,-1081.2652538,0.00012065,2]
[323153760,1713730238615,-1000.0,0.00012067,2]
[323153761,1713730238623,-845.9,0.00012073,2]
[323153762,1713730238633,-6484.50012851,0.00012104,2]
[323153763,1713730238642,-786.99155585,0.00012145,2]
[323153764,1713730238651,-6484.50012851,0.00012192,2]
[323153765,1713730238660,-688.0535,0.00012245,2]
[323153766,1713730238670,-854.9439,0.00012245,2]
[323153767,1713730238679,-6787.6748,0.00012245,2]
[323153768,1713730238688,-6484.50012851,0.00012281,2]
[323153769,1713730238698,-6484.50012851,0.00012369,2]
[323153770,1713730238707,-6484.50012851,0.00012458,2]
[323153771,1713730238716,-251.08783605,0.000125,2]
[323153773,1713730238725,-6484.50012851,0.00012546,2]
[323153775,1713730238734,-1074.0,0.00012573,2]
[323153777,1713730238744,-171.53,0.00012583,2]
[323153778,1713730238753,-277.78803159,0.00012586,2]
[323153779,1713730238762,-155.0,0.00012587,2]
[323153780,1713730238771,-262.16181551,0.00012587,2]
[323153781,1713730238781,-204.88286234,0.00012587,2]
[323153782,1713730238790,-155.73191531,0.00012588,2]
[323153783,1713730238799,-155.0,0.00012588,2]
[323153784,1713730238808,-408.04988804,0.00012588,2]
[323153785,1713730238817,-155.2475375,0.00012588,2]
[323153787,1713730238827,-157.78253506,0.00012588,2]
[323153789,1713730238836,-156.94283025,0.00012588,2]
[323153791,1713730238845,-194.01529019,0.00012589,2]
[323153793,1713730238854,-308.3922186,0.00012589,2]
[323153795,1713730238863,-160.54760035,0.00012589,2]
[323153796,1713730238872,-245.80054574,0.00012589,2]
[323153797,1713730238881,-233.63015905,0.0001259,2]
[323153798,1713730238890,-2828.72042309,0.00012591,2]
[323153799,1713730238899,-91947.4474,0.00012593,2]
[323153800,1713730238909,-172.68675683,0.00012869,2]
[323153801,1713730238917,-573.57950609,0.00012888,2]
[323153802,1713730238927,-40011.4814,0.00012898,2]
[323153803,1713730238936,-245000.0,0.00012898,2]
[323153804,1713730238945,-12784.61868431,0.00012899,2]
[323153805,1713730238954,-854.494428,0.000129,2]
[323153806,1713730238964,-1000.0,0.000129,2]
[323153807,1713730238973,-1019.18,0.000129,2]
[323153808,1713730238982,-792.88,0.000129,2]
[323153809,1713730238991,-1369.72703,0.000129,2]
[323153810,1713730239000,-1505.71657532,0.000129,2]
[323153811,1713730239009,-484.85079368,0.000129,2]
[323153812,1713730239022,-399.99687847,0.000129,2]
[323153813,1713730239031,-331.87403042,0.000129,2]